fUSD/lending_fUSD_20240612
["ID","MTS","AMOUNT","RATE_DAILY","PERIOD"]
[329261622,1718203866729,-207.80064736,0.00024224,2]
[329261623,1718203866740,-180.0,0.0002423,2]
[329261624,1718203866922,-171.18212071,0.00024233,2]
[329261625,1718203866933,-207.80064736,0.00024235,2]
[329261626,1718203866947,-153.51553158,0.0002424,2]
[329261627,1718203866964,-152.96395665,0.0002425,2]
[329261628,1718203866988,-972.77672534,0.00024261,2]
[329261629,1718203867004,-207.80064736,0.00024275,2]
[329261630,1718203867014,-207.80064736,0.00024294,2]
[329261631,1718203867026,-152.96395665,0.00024309,2]
[329261632,1718203867036,-1146.03,0.00024329,30]
[329261633,1718203867047,-155.18985091,0.00024332,2]
[329261634,1718203867058,-972.77672534,0.00024335,2]
[329261635,1718203867081,-187.75896338,0.0002436,2]
[329261636,1718203867092,-156.83098821,0.00024362,2]
[329261637,1718203867102,-155.18985091,0.00024374,2]
[329261638,1718203867113,-153.96520925,0.00024381,2]
[329261639,1718203867124,-279.36,0.00024384,2]
[329261640,1718203867134,-154.12214519,0.00024395,2]
[329261641,1718203867153,-372.95920627,0.00024396,2]
[329261642,1718203867163,-154.12214519,0.00024407,2]
[329261643,1718203867173,-470.44731972,0.00024408,2]
[329261644,1718203867184,-153.25802494,0.00024409,2]
[329261645,1718203867194,-187.75896338,0.00024418,2]
[329261646,1718203867204,-166.66666667,0.00024475,2]
[329261647,1718203867214,-187.75896338,0.00024478,2]
[329261648,1718203867224,-193.35633606,0.00024505,2]
[329261649,1718203867234,-177.20787856,0.0002452,2]
[329261650,1718203867245,-972.77672534,0.00024547,2]
[329261651,1718203867255,-151.76197192,0.00024555,2]
[329261652,1718203867266,-165.4093236,0.0002456,2]
[329261653,1718203867277,-155.21784787,0.00024572,2]
[329261654,1718203867287,-153.39895734,0.00024573,2]
[329261655,1718203867299,-972.77672534,0.00024578,2]
[329261656,1718203867311,-172.72952371,0.00024596,2]
[329261657,1718203867322,-372.95920627,0.00024604,2]
[329261658,1718203867333,-153.51553158,0.00024609,2]
[329261659,1718203867343,-372.95920627,0.00024614,2]
[329261660,1718203867353,-187.75896338,0.00024628,2]
[329261661,1718203867364,-972.77672534,0.00024638,2]
[329261662,1718203867376,-155.18985091,0.00024645,2]
[329261663,1718203867387,-372.95920627,0.00024678,2]
[329261664,1718203867402,-177.20787856,0.00024687,2]
[329261665,1718203867412,-207.80064736,0.00024704,2]
[329261666,1718203867422,-1000.0,0.00024704,2]
[329261667,1718203867432,-372.95920627,0.00024712,2]
[329261668,1718203867442,-378.21,0.00024721,2]
[329261669,1718203867452,-3728.18370699,0.00024747,2]
[329261670,1718203867463,-2893.38778962,0.00024754,2]
[329261671,1718203867473,-1000.0,0.00024779,2]
[329261672,1718203867484,-372.95920627,0.00024782,2]
[329261673,1718203867496,-5986.53849689,0.00024798,2]
[329261674,1718203867507,-5986.53849685,0.00024798,2]
[329261675,1718203867517,-5986.53849685,0.00024798,2]
[329261676,1718203867529,-5986.53849685,0.00024798,2]
[329261677,1718203867540,-5986.53849685,0.00024798,2]
[329261678,1718203867551,-5986.53849685,0.00024798,2]
[329261679,1718203867562,-2422.4707203,0.00024799,2]
[329261680,1718203867573,-2422.47072024,0.00024799,2]
[329261681,1718203867583,-2422.47072024,0.00024799,2]
[329261682,1718203867594,-2422.47072024,0.00024799,2]
[329261683,1718203867604,-2422.47072024,0.00024799,2]
[329261684,1718203867615,-2422.47072024,0.00024799,2]
[329261685,1718203867626,-154.89060015,0.00024812,2]
[329261686,1718203867637,-154.82327134,0.00024827,2]
[329261687,1718203867651,-153.51553158,0.00024835,2]
[329261688,1718203867663,-170.49359198,0.00024841,2]
[329261689,1718203867673,-150.0,0.00024842,2]
[329261690,1718203867686,-151.48043344,0.00024886,2]
[329261691,1718203867697,-23028.92699678,0.00024887,2]
[329261692,1718203867707,-372.95920627,0.00024887,2]
[329261693,1718203867720,-372.95920627,0.00024888,2]
[329261694,1718203867732,-155.0,0.000249,2]
[329261695,1718203867748,-6801.38955885,0.000249,2]
[329261696,1718203867760,-250000.0,0.000249,2]
[329261697,1718203867774,-1009.86,0.000249,2]
[329261698,1718203867786,-586.780742,0.000249,2]
[329261699,1718203867797,-159.55162633,0.00024908,2]
[329261700,1718203867809,-2893.38778962,0.00024948,2]
[329261701,1718203867820,-177.20787856,0.0002496,2]
[329261702,1718203867831,-158.32026496,0.00024966,2]
[329261703,1718203867842,-2893.38778962,0.00024997,2]
[329261704,1718203867865,-155.0,0.00025,2]
[329261705,1718203867893,-930.99721425,0.00025,2]
[329261706,1718203867910,-150.0,0.00025,2]
[329261707,1718203867923,-706.94373209,0.00025,2]
[329261708,1718203867943,-225.34445904,0.00025,2]
[329261709,1718203867954,-326.20621405,0.00025,2]
[329261710,1718203867966,-159.1918364,0.00025,2]
[329261711,1718203867977,-50017.94887437,0.00025,2]
[329261712,1718203867988,-155.0,0.00025,2]
[329261713,1718203868001,-326.33400151,0.00025,2]
[329261714,1718203868012,-1204.75428974,0.00025,2]
[329261715,1718203868022,-155.0,0.00025,2]
[329261716,1718203868034,-169.24834234,0.00025,2]
[329261717,1718203868045,-155.0,0.00025,2]
[329261718,1718203868056,-1350.0,0.00025,2]
[329261719,1718203868091,-275.5,0.00025,2]
[329261720,1718203868102,-150.0,0.00025,4]
[329261721,1718203868112,-166.66666668,0.00025015,2]
[329261722,1718203868123,-154.89060015,0.00025035,2]
[329261723,1718203868134,-187.75896338,0.00025037,2]
[329261724,1718203868148,-154.82327134,0.0002505,2]
[329261725,1718203868161,-156.83098821,0.00025072,2]
[329261726,1718203868174,-207.80064736,0.00025073,2]
[329261727,1718203868187,-152.96395665,0.00025084,2]
[329261728,1718203868198,-154.12214519,0.00025093,2]
[329261729,1718203868208,-177.20787856,0.00025097,2]
[329261730,1718203868220,-166.66666668,0.00025109,2]
[329261731,1718203868232,-153.25802494,0.00025128,2]
[329261732,1718203868243,-153.25802494,0.0002514,2]
[329261733,1718203868255,-166.66666667,0.00025145,2]
[329261734,1718203868266,-188.10968945,0.0002515,2]
[329261735,1718203868277,-152.57735206,0.00025157,2]
[329261736,1718203868289,-151.48043344,0.00025159,2]
[329261737,1718203868300,-372.95920627,0.00025165,2]
[329261738,1718203868312,-470.44731972,0.00025176,2]
[329261739,1718203868323,-207.80064736,0.00025182,2]
[329261740,1718203868333,-504.07749511,0.00025184,2]
[329261741,1718203868344,-1000.0,0.00025205,2]
[329261742,1718203868357,-187.75896338,0.0002521,2]
[329261743,1718203868369,-2893.38778962,0.00025257,2]
[329261744,1718203868381,-151.36047297,0.00025262,2]
[329261745,1718203868398,-187.75896338,0.00025292,2]
[329261746,1718203868411,-470.44731972,0.00025293,2]
[329261747,1718203868422,-177.20787856,0.00025296,2]
[329261748,1718203868433,-2893.38778962,0.00025305,2]
[329261749,1718203868445,-151.36047297,0.00025321,2]
[329261750,1718203868456,-155.18985091,0.0002533,2]
[329261751,1718203868468,-155.18985091,0.0002535,2]
[329261752,1718203868481,-159.55162633,0.00025371,2]
[329261753,1718203868493,-972.77672534,0.00025375,2]
[329261754,1718203868505,-2422.47072024,0.00025383,2]
[329261755,1718203868520,-5986.53849685,0.00025383,2]
[329261756,1718203868533,-177.20787856,0.00025384,2]
[329261757,1718203868545,-152.96395665,0.00025397,2]
[329261758,1718203868557,-2893.38778962,0.00025436,2]
[329261759,1718203868568,-2893.38778962,0.00025448,2]
[329261760,1718203868581,-470.44731972,0.00025469,2]
[329261761,1718203868593,-470.44731972,0.00025475,2]
[329261762,1718203868605,-150.0,0.0002549,2]
[329261763,1718203868619,-150.0,0.000255,4]
[329261764,1718203868631,-151.76197192,0.00025505,2]
[329261765,1718203868642,-187.75896338,0.00025521,2]
[329261766,1718203868654,-372.95920627,0.00025529,2]
[329261767,1718203868666,-187.75896338,0.00025537,2]
[329261768,1718203868677,-207.80064736,0.00025553,2]
[329261769,1718203868688,-154.82327134,0.00025558,2]
[329261770,1718203868701,-153.39895734,0.00025565,2]
[329261771,1718203868713,-159.55162633,0.00025569,2]
[329261772,1718203868724,-155.0,0.0002557,11]
[329261773,1718203868737,-972.77672534,0.00025571,2]
[329261774,1718203868748,-3728.18370699,0.00025577,2]
[329261775,1718203868759,-159.55162634,0.00025584,2]
[329261776,1718203868769,-177.20787856,0.00025585,2]
[329261777,1718203868780,-156.83098821,0.00025586,2]
[329261778,1718203868792,-972.77672534,0.00025592,2]
[329261779,1718203868803,-470.44731972,0.00025593,2]
[329261780,1718203868816,-153.39895734,0.00025606,2]
[329261781,1718203868827,-2893.38778962,0.00025607,2]
[329261782,1718203868838,-372.95920627,0.00025647,2]
[329261783,1718203868848,-153.25802494,0.00025656,2]
[329261784,1718203868860,-470.44731972,0.00025657,2]
[329261785,1718203868871,-153.25802494,0.00025662,2]
[329261786,1718203868882,-207.80064736,0.00025663,2]
[329261787,1718203868892,-187.75896338,0.00025666,2]
[329261788,1718203868906,-153.51553158,0.00025673,2]
[329261789,1718203868917,-470.44731972,0.00025674,2]
[329261790,1718203868928,-154.12214519,0.00025677,2]
[329261791,1718203868939,-470.44731972,0.00025702,2]
[329261792,1718203868949,-207.80064736,0.00025705,2]
[329261793,1718203868959,-4264.70976024,0.00025715,2]
[329261794,1718203868969,-151.76197192,0.0002572,2]
[329261795,1718203868979,-151.36047297,0.00025732,2]
[329261796,1718203868990,-470.44731972,0.00025742,2]
[329261797,1718203869000,-151.36047297,0.00025761,2]
[329261798,1718203869010,-187.75896338,0.00025763,2]
[329261799,1718203869021,-154.89060015,0.00025775,2]
[329261800,1718203869031,-200.0,0.00025781,2]
[329261801,1718203869043,-1000.0,0.00025781,2]
[329261802,1718203869054,-500.0,0.00025781,2]
[329261803,1718203869099,-200.0,0.00025781,2]
[329261804,1718203869111,-154.12214519,0.00025796,2]
[329261805,1718203869148,-372.95920627,0.00025799,2]
[329261806,1718203869167,-207.80064736,0.00025817,2]
[329261807,1718203869182,-151.48043344,0.00025818,2]
[329261808,1718203869197,-151.36047297,0.00025821,2]
[329261809,1718203869209,-153.96520925,0.00025826,2]
[329261810,1718203869222,-151.76197192,0.00025845,2]
[329261811,1718203869237,-160.69768341,0.00025888,2]
[329261812,1718203869252,-194.1,0.0002589,2]
[329261813,1718203869271,-605.09861796,0.00025893,2]
[329261814,1718203869283,-187.75896338,0.00025893,2]
[329261815,1718203869296,-1100.0,0.000259,9]
[329261816,1718203869308,-417.62,0.00025905,2]
[329261817,1718203869319,-851.24,0.00025905,2]
[329261818,1718203869332,-207.80064736,0.00025913,2]
[329261819,1718203869343,-470.44731972,0.00025942,2]
[329261820,1718203869357,-150.0,0.00025955,2]
[329261821,1718203869372,-372.95920627,0.00025956,2]
[329261822,1718203869384,-151.76197192,0.00025956,2]
[329261823,1718203869397,-150.0,0.00025969,2]
[329261824,1718203869407,-187.75896338,0.00025969,2]
[329261825,1718203869424,-152.96395665,0.00025972,2]
[329261826,1718203869435,-470.44731972,0.00025986,2]
[329261827,1718203869446,-5966.3476717,0.00026,2]
[329261828,1718203869457,-23852.14157762,0.00026,5]
[329261829,1718203869469,-803.0,0.00026,14]
[329261830,1718203869479,-3000.0,0.00026,2]
[329261831,1718203869490,-412.867244,0.00026,2]
[329261832,1718203869501,-150.0,0.00026,4]
[329261833,1718203869518,-972.77672534,0.00026008,2]
[329261834,1718203869529,-152.57735206,0.00026011,2]
[329261835,1718203869540,-154.89060015,0.00026016,2]
[329261836,1718203869550,-150.0,0.00026021,2]
[329261837,1718203869572,-150.0,0.00026022,2]
[329261838,1718203869583,-1500.0,0.00026027,30]
[329261839,1718203869595,-500.0,0.00026027,2]
[329261840,1718203869606,-261.36,0.00026027,2]
[329261841,1718203869616,-470.44731972,0.00026029,2]
[329261842,1718203869627,-177.20787856,0.00026033,2]
[329261843,1718203869637,-153.25802494,0.00026046,2]
[329261844,1718203869651,-2893.38778962,0.00026057,2]
[329261845,1718203869662,-152.96395665,0.00026066,2]
[329261846,1718203869673,-150.0,0.00026068,2]
[329261847,1718203869685,-152.96395665,0.0002607,2]
[329261848,1718203869700,-150.0,0.0002608,2]
[329261849,1718203869712,-372.95920627,0.00026101,2]
[329261850,1718203869724,-177.20787856,0.00026127,2]
[329261851,1718203869738,-150.0,0.00026133,2]
[329261852,1718203869752,-150.0,0.00026134,2]
[329261853,1718203869763,-470.44731972,0.00026135,2]
[329261854,1718203869781,-150.0,0.0002614,2]
[329261855,1718203869792,-150.0,0.00026155,2]
[329261856,1718203869803,-470.44731972,0.00026157,2]
[329261857,1718203869814,-150.0,0.00026163,2]
[329261858,1718203869869,-154.12214519,0.00026172,2]
[329261859,1718203869881,-150.0,0.00026173,2]
[329261860,1718203869891,-152.57735206,0.00026174,2]
[329261861,1718203869905,-155.18985091,0.00026175,2]
[329261862,1718203869915,-150.0,0.00026178,2]
[329261863,1718203869926,-150.0,0.00026181,2]
[329261864,1718203869940,-150.0,0.00026192,2]
[329261865,1718203869950,-151.36047297,0.00026194,2]
[329261866,1718203869962,-150.0,0.00026197,2]
[329261867,1718203869975,-150.0,0.00026201,2]
[329261868,1718203869985,-153.25802494,0.00026218,2]
[329261869,1718203869999,-207.80064736,0.00026218,2]
[329261870,1718203870009,-150.0,0.00026219,2]
[329261871,1718203870025,-972.77672534,0.0002622,2]
[329261872,1718203870036,-1009.86,0.0002622,2]
[329261873,1718203870047,-150.0,0.00026224,2]
[329261874,1718203870067,-150.0,0.00026228,2]
[329261875,1718203870089,-150.0,0.00026233,2]
[329261876,1718203870101,-154.12214519,0.00026237,2]
[329261877,1718203870113,-150.0,0.00026251,2]
[329261878,1718203870124,-150.0,0.00026258,2]
[329261879,1718203870134,-150.0,0.0002626,2]
[329261880,1718203870150,-150.0,0.00026263,2]
[329261881,1718203870165,-150.0,0.00026269,2]
[329261882,1718203870178,-151.76197192,0.00026271,2]
[329261883,1718203870196,-150.0,0.00026287,2]
[329261884,1718203870218,-150.0,0.000263,2]
[329261885,1718203870245,-1500.0,0.00026301,30]
[329261886,1718203870266,-2000.0,0.00026301,3]
[329261887,1718203870279,-154.12214519,0.00026307,2]
[329261888,1718203870291,-150.0,0.00026311,2]
[329261889,1718203870302,-153.39895734,0.00026316,2]
[329261890,1718203870314,-150.0,0.00026323,2]
[329261891,1718203870325,-153.25802494,0.00026324,2]
[329261892,1718203870337,-150.0,0.00026327,2]
[329261893,1718203870348,-150.0,0.00026331,2]
[329261894,1718203870363,-177.20787856,0.00026351,2]
[329261895,1718203870382,-150.0,0.00026358,2]
[329261896,1718203870398,-150.0,0.00026359,2]
[329261897,1718203870408,-152.96395665,0.00026365,2]
[329261898,1718203870419,-150.0,0.00026376,2]
[329261899,1718203870431,-151.76197192,0.0002638,2]
[329261900,1718203870442,-150.0,0.00026387,2]
[329261901,1718203870453,-177.20787856,0.00026387,2]
[329261902,1718203870464,-150.0,0.00026389,2]
[329261903,1718203870477,-150.0,0.00026393,2]
[329261904,1718203870489,-150.0,0.00026399,2]
[329261905,1718203870502,-155.18985091,0.00026407,2]
[329261906,1718203870515,-150.0,0.00026408,2]
[329261907,1718203870528,-3728.18370699,0.00026408,2]
[329261908,1718203870541,-150.0,0.00026409,2]
[329261909,1718203870552,-150.0,0.00026411,2]
[329261910,1718203870569,-150.0,0.00026418,2]
[329261911,1718203870582,-150.0,0.00026425,2]
[329261912,1718203870592,-150.0,0.00026429,2]
[329261913,1718203870604,-150.0,0.0002643,2]
[329261914,1718203870616,-150.0,0.00026438,2]
[329261915,1718203870636,-150.0,0.00026442,2]
[329261916,1718203870653,-154.89060015,0.00026445,2]
[329261917,1718203870665,-150.0,0.00026446,2]
[329261918,1718203870676,-151.76197192,0.00026448,2]
[329261919,1718203870687,-150.0,0.00026453,2]
[329261920,1718203870697,-372.95920627,0.00026454,2]
[329261921,1718203870710,-972.77672534,0.00026456,2]
[329261922,1718203870740,-150.0,0.00026475,2]
[329261923,1718203870768,-150.0,0.00026482,2]
[329261924,1718203870782,-155.18985091,0.00026485,2]
[329261925,1718203870797,-2422.47072024,0.00026488,2]
[329261926,1718203870810,-5986.53849685,0.00026488,2]
[329261927,1718203870825,-154.12214519,0.00026491,2]
[329261928,1718203870838,-803.0,0.000265,14]
[329261929,1718203870855,-150.0,0.000265,5]
[329261930,1718203870867,-2893.38778962,0.00026508,2]
[329261931,1718203870881,-169.15586852,0.00026525,2]
[329261932,1718203870897,-372.95920627,0.00026526,2]
[329261933,1718203870910,-150.0,0.00026528,2]
[329261934,1718203870922,-152.96395665,0.0002653,2]
[329261935,1718203870936,-150.0,0.00026536,2]
[329261936,1718203870953,-150.0,0.00026544,2]
[329261937,1718203870974,-150.0,0.00026548,2]
[329261938,1718203870990,-150.0,0.00026556,2]
[329261939,1718203871002,-150.0,0.00026559,2]
[329261940,1718203871012,-150.0,0.00026561,2]
[329261941,1718203871028,-150.0,0.00026564,2]
[329261942,1718203871039,-151.48043344,0.00026569,2]
[329261943,1718203871049,-154.12214519,0.0002657,2]
[329261944,1718203871065,-150.0,0.00026574,2]
[329261945,1718203871093,-1500.0,0.00026575,30]
[329261946,1718203871105,-150.0,0.00026581,2]
[329261947,1718203871116,-150.0,0.00026588,2]
[329261948,1718203871130,-150.0,0.00026591,2]
[329261949,1718203871147,-154.12214519,0.000266,2]
[329261950,1718203871188,-413.92057913,0.00026603,2]
[329261951,1718203871202,-372.95920627,0.00026604,2]
[329261952,1718203871228,-972.77672534,0.00026609,2]
[329261953,1718203871242,-150.0,0.00026611,2]
[329261954,1718203871252,-155.20948984,0.00026633,2]
[329261955,1718203871266,-150.0,0.00026644,2]
[329261956,1718203871279,-470.44731972,0.00026681,2]
[329261957,1718203871291,-150.0,0.00026685,2]
[329261958,1718203871302,-972.77672534,0.00026687,2]
[329261959,1718203871313,-150.0,0.00026691,2]
[329261960,1718203871323,-150.0,0.00026692,2]
[329261961,1718203871334,-150.0,0.00026696,2]
[329261962,1718203871347,-151.76197192,0.00026699,2]
[329261963,1718203871357,-207.80064736,0.000267,2]
[329261964,1718203871369,-1000.0,0.000267,2]
[329261965,1718203871379,-150.0,0.00026705,2]
[329261966,1718203871391,-150.0,0.00026711,2]
[329261967,1718203871404,-151.36047297,0.00026722,2]
[329261968,1718203871414,-158.32026496,0.00026723,2]
[329261969,1718203871424,-3411.7329777,0.0002673,2]
[329261970,1718203871435,-150.0,0.00026732,2]
[329261971,1718203871446,-177.20787856,0.00026734,2]
[329261972,1718203871457,-150.0,0.00026741,2]
[329261973,1718203871467,-153.39895734,0.00026746,2]
[329261974,1718203871478,-150.0,0.00026747,2]
[329261975,1718203871489,-150.0,0.00026767,2]
[329261976,1718203871501,-972.77672534,0.00026769,2]
[329261977,1718203871512,-150.0,0.00026778,2]
[329261978,1718203871523,-1000.0,0.00026781,2]
[329261979,1718203871534,-150.0,0.00026784,2]
[329261980,1718203871545,-166.66666668,0.00026787,2]
[329261981,1718203871560,-150.0,0.00026788,2]
[329261982,1718203871572,-207.80064736,0.0002679,2]
[329261983,1718203871584,-2893.38778962,0.00026791,2]
[329261984,1718203871596,-150.0,0.00026796,2]
[329261985,1718203871608,-972.77672534,0.00026806,2]
[329261986,1718203871619,-154.12214519,0.00026808,2]
[329261987,1718203871638,-150.0,0.0002681,2]
[329261988,1718203871653,-150.0,0.00026815,2]
[329261989,1718203871665,-161.15554008,0.00026818,2]
[329261990,1718203871675,-151.0,0.00026819,2]
[329261991,1718203871687,-150.0,0.00026831,2]
[329261992,1718203871697,-150.0,0.00026834,2]
[329261993,1718203871707,-2893.38778962,0.00026839,2]
[329261994,1718203871718,-151.36047297,0.00026841,2]
[329261995,1718203871729,-153.25802494,0.00026842,2]
[329261996,1718203871740,-1500.0,0.00026849,30]
[329261997,1718203871752,-2893.38778962,0.00026851,2]
[329261998,1718203871763,-177.20787856,0.00026861,2]
[329261999,1718203871774,-2893.38778962,0.00026862,2]
[329262000,1718203871783,-150.0,0.00026863,2]
[329262001,1718203871795,-152.96395665,0.00026869,2]
[329262002,1718203871806,-150.5,0.0002687,15]
[329262003,1718203871817,-154.89060015,0.0002687,2]
[329262004,1718203871828,-150.0,0.00026872,2]
[329262005,1718203871846,-207.80064736,0.00026874,2]
[329262006,1718203871858,-2893.38778962,0.00026878,2]
[329262007,1718203871869,-150.5,0.0002688,15]
[329262008,1718203871881,-150.5,0.0002689,15]
[329262009,1718203871894,-150.0,0.00026897,2]
[329262010,1718203871905,-150.0,0.00026898,2]
[329262011,1718203871919,-305.0,0.000269,2]
[329262012,1718203871930,-305.0,0.000269,2]
[329262013,1718203871944,-346.0,0.000269,2]
[329262014,1718203871955,-160.0,0.000269,2]
[329262015,1718203871966,-160.0,0.000269,2]
[329262016,1718203872000,-190.0,0.000269,10]
[329262017,1718203872012,-172.56546714,0.000269,2]
[329262018,1718203872022,-1500.0,0.000269,9]
[329262019,1718203872032,-150.0,0.000269,5]
[329262020,1718203872043,-150.0,0.000269,5]
[329262021,1718203872054,-177.20787856,0.00026902,2]
[329262022,1718203872070,-150.0,0.00026903,2]
[329262023,1718203872089,-150.0,0.00026909,2]
[329262024,1718203872099,-150.0,0.0002693,2]
[329262025,1718203872110,-150.0,0.00026934,2]
[329262026,1718203872121,-155.20948984,0.00026941,2]
[329262027,1718203872133,-150.0,0.00026942,2]
[329262028,1718203872153,-150.0,0.00026947,2]
[329262029,1718203872164,-1000.0,0.0002695,2]
[329262030,1718203872182,-150.0,0.00026951,2]
[329262031,1718203872195,-153.39895734,0.00026951,2]
[329262032,1718203872208,-372.95920627,0.00026954,2]
[329262033,1718203872220,-150.0,0.00026956,2]
[329262034,1718203872231,-150.0,0.00026959,2]
[329262035,1718203872244,-150.0,0.00026969,2]
[329262036,1718203872255,-264.0,0.0002697,13]
[329262037,1718203872267,-154.89060015,0.0002697,2]
[329262038,1718203872278,-150.0,0.00026975,2]
[329262039,1718203872289,-150.0,0.00026975,2]
[329262040,1718203872301,-150.0,0.00026978,2]
[329262041,1718203872313,-153.51553158,0.00026984,2]
[329262042,1718203872324,-378.21,0.00026985,2]
[329262043,1718203872335,-372.95920627,0.00026993,2]
[329262044,1718203872346,-150.0,0.00026994,2]
[329262045,1718203872358,-150.0,0.00026995,2]
[329262046,1718203872373,-87187.3580011,0.00026995,2]
[329262047,1718203872386,-5895.19145889,0.00026997,2]
[329262048,1718203872401,-209.0392814,0.00026997,2]
[329262049,1718203872416,-3153.8212267,0.00026998,2]
[329262050,1718203872427,-5794.7106963,0.00026998,2]
[329262051,1718203872437,-1027.189931,0.00026998,2]
[329262052,1718203872448,-1133.23937,0.00026998,2]
[329262053,1718203872461,-3000.0,0.00027,7]
[329262054,1718203872472,-155.62112745,0.00027,4]
[329262055,1718203872484,-1800.0,0.00027,28]
[329262056,1718203872498,-155.0,0.00027,2]
[329262057,1718203872508,-10000.0,0.00027,7]
[329262058,1718203872521,-50618.64815748,0.00027,7]
[329262059,1718203872532,-48032.32,0.00027,6]
[329262060,1718203872546,-500.0,0.00027,10]
[329262061,1718203872569,-500.0,0.00027,14]
[329262062,1718203872584,-500.0,0.00027,9]
[329262063,1718203872596,-500.0,0.00027,8]
[329262064,1718203872607,-500.0,0.00027,7]
[329262065,1718203872620,-61512.26869194,0.00027,2]
[329262066,1718203872633,-1845.0,0.00027,2]
[329262067,1718203872650,-1845.49563705,0.00027,2]
[329262068,1718203872662,-11055.57712869,0.00027,2]
[329262069,1718203872673,-231425.22036813,0.00027,2]
[329262070,1718203872685,-22208.2345535,0.00027,2]
[329262071,1718203872698,-5989.85998329,0.00027,2]
[329262072,1718203872717,-8927.83,0.00027,2]
[329262073,1718203872731,-2398.68,0.00027,2]
[329262074,1718203872745,-154.16966165,0.00027,2]
[329262075,1718203872766,-803.0,0.00027,15]
[329262076,1718203872782,-1400.0,0.00027,2]
[329262077,1718203872796,-291.624623,0.00027,7]
[329262078,1718203872808,-312.470069,0.00027,7]
[329262079,1718203872819,-151.0,0.00027,7]
[329262080,1718203872829,-151.0,0.00027,7]
[329262081,1718203872839,-151.0,0.00027,7]
[329262082,1718203872851,-151.0,0.00027,7]
[329262083,1718203872862,-151.0,0.00027,7]
[329262084,1718203872874,-151.0,0.00027,7]
[329262085,1718203872885,-151.0,0.00027,7]
[329262086,1718203872899,-200.0,0.00027,2]
[329262087,1718203872911,-151.0,0.00027,7]
[329262088,1718203872923,-151.0,0.00027,7]
[329262089,1718203872933,-151.0,0.00027,7]
[329262090,1718203872946,-151.0,0.00027,7]
[329262091,1718203872957,-151.0,0.00027,7]
[329262092,1718203872968,-151.0,0.00027,7]
[329262093,1718203872979,-151.0,0.00027,7]
[329262094,1718203872989,-151.0,0.00027,7]
[329262095,1718203873001,-151.0,0.00027,7]
[329262096,1718203873012,-151.0,0.00027,7]
[329262097,1718203873022,-2000.0,0.00027,2]
[329262098,1718203873033,-150.0,0.00027,2]
[329262099,1718203873043,-151.0,0.00027,7]
[329262100,1718203873054,-151.0,0.00027,7]
[329262101,1718203873079,-151.0,0.00027,7]
[329262102,1718203873090,-151.0,0.00027,7]
[329262103,1718203873100,-242.360006,0.00027,7]
[329262104,1718203873110,-151.0,0.00027,7]
[329262105,1718203873123,-151.0,0.00027,7]
[329262106,1718203873136,-151.0,0.00027,7]
[329262107,1718203873150,-151.0,0.00027,7]
[329262108,1718203873161,-151.0,0.00027,7]
[329262109,1718203873171,-151.0,0.00027,7]
[329262110,1718203873184,-151.0,0.00027,7]
[329262111,1718203873196,-151.0,0.00027,7]
[329262112,1718203873207,-217.51719,0.00027,7]
[329262113,1718203873222,-150.0,0.00027,5]
[329262114,1718203873234,-1413.894061,0.00027,7]
[329262115,1718203873246,-1413.894061,0.00027,7]
[329262116,1718203873258,-265.354225,0.00027,7]
[329262117,1718203873269,-265.354225,0.00027,7]
[329262118,1718203873281,-151.0,0.00027,7]
[329262119,1718203873292,-193.242857,0.00027,7]
[329262120,1718203873302,-193.242857,0.00027,7]
[329262121,1718203873313,-2920.82815,0.0002701,2]